lending/lending_fUSD_20260110
["ID","MTS","AMOUNT","RATE_DAILY","PERIOD"]
[401270441,1768087771939,8555.1889827,0.00014348,2]
[401270442,1768087771967,10000.01,0.00014348,2]
[401270443,1768087771995,10000.01,0.00014348,2]
[401270444,1768087772028,10000.01,0.00014348,2]
[401270445,1768087772056,10000.01,0.00014348,2]
[401270446,1768087772087,10000.01,0.00014348,2]
[401270447,1768087772116,10000.01,0.00014348,2]
[401270448,1768087772144,10000.01,0.00014348,2]
[401270449,1768087772172,10000.01,0.00014348,2]
[401270450,1768087772199,10000.01,0.00014348,2]
[401270451,1768087807900,-3631.90490658,0.00014346,2]
[401270452,1768087807934,-1200.0,0.00014347,2]
[401270453,1768087807966,-36.20018684,0.00014347,2]
[401270454,1768087808293,-263.79981316,0.00014347,2]
[401270455,1768087808324,-150.0,0.00014347,2]
[401270456,1768087811876,-8037.08008484,0.00014348,2]
[401270457,1768087812666,-10000.01,0.00014348,2]
[401270458,1768087812682,-10000.01,0.00014348,2]
[401270459,1768087812700,-10000.01,0.00014348,2]
[401270460,1768087812713,-10000.01,0.00014348,2]
[401270461,1768087821916,-10000.01,0.00014348,2]
[401270462,1768087822146,-10000.01,0.00014348,2]
[401270463,1768087822381,-10000.01,0.00014348,2]
[401270465,1768087831647,-10000.01,0.00014348,2]
[401270472,1768087831864,-7296.54601404,0.00014348,2]
[401270474,1768087831876,-8108.27566798,0.00014348,2]
[401270475,1768087831887,-320.124,0.00014348,2]
[401270476,1768087831900,-254.480222,0.00014348,2]
[401270477,1768087831915,-10000.01,0.00014348,2]
[401270478,1768087831939,-999.67682255,0.00014348,2]
[401270479,1768087831950,-2225.9,0.00014348,2]
[401270480,1768087831961,-5398.67852417,0.00014348,2]
[401270481,1768087831972,-684.36394183,0.00014348,2]
[401270482,1768087831985,-335.26580545,0.00014348,2]
[401270483,1768087832031,-7805.35260329,0.00014348,2]
[401270486,1768087832044,-1014.02545008,0.00014348,2]
[401270490,1768087832074,-10000.01,0.00014348,2]
[401270503,1768087832295,-10000.01,0.00014348,2]
[401270506,1768087837991,-722.46490153,0.00014348,2]
[401270507,1768087838313,-1650.0,0.00014348,2]
[401270508,1768087838325,-999.0,0.00014348,2]
[401270687,1768087840225,-2104.51607168,0.00014348,2]
[401271053,1768087843937,-2819.31848434,0.00014348,2]
[401271146,1768087844892,-10000.01,0.00014348,2]
[401271266,1768087846034,-291309.72814289,0.00014348,2]
[401271772,1768087857994,-10000.01,0.00014348,2]
[401271773,1768087858194,-10000.01,0.00014348,2]
[401271774,1768087858366,-10000.01,0.00014348,2]
[401271775,1768087858578,-10000.01,0.00014348,2]
[401271776,1768087868014,11204.935294,7.945e-05,2]
[401271777,1768087888513,-385.59578952,0.00014346,2]
[401271778,1768087890884,-114.40421048,0.00014346,2]
[401271779,1768087912138,-300.0,0.00014347,2]
[401271780,1768087931919,162.86716502,0.00014248,2]
[401271781,1768087938195,162.86716502,0.00014248,2]
[401271782,1768087942696,6427.74835332,0.00014248,2]
[401271783,1768087981556,300.0,0.00014347,2]
[401271784,1768087981931,150.0,0.00014347,2]
[401271785,1768087989903,171.0,7.5e-07,2]
[401271786,1768087996028,1200.0,0.00014347,2]
[401271787,1768088041529,300.0,0.00014347,2]
[401271788,1768088077204,162.86716498,0.00014248,2]
[401271789,1768088083426,162.86716498,0.00014248,2]
[401271790,1768088101571,199.79298668,0.00014347,2]
[401271791,1768088101594,1000.20701332,0.00014347,2]
[401271792,1768088115158,222.18749106,0.00014248,2]
[401271793,1768088162035,150.0,0.00014347,2]
[401271794,1768088170402,170.3827,0.00014248,2]
[401271795,1768088212675,162.86716494,0.00014248,2]
[401271796,1768088281736,300.0,0.00014347,2]
[401271797,1768088291650,160.64501852,0.00014248,2]
[401271798,1768088295384,1200.0,0.00014347,2]
[401271799,1768088314209,4570.77586672,0.00014248,2]
[401271800,1768088329090,2062.94474544,0.00014248,2]
[401271801,1768088329115,3722.02877253,0.00014248,2]
[401271802,1768088342511,150.0,0.00014347,2]
[401271803,1768088360770,6127.98122747,0.00014338,2]
[401271804,1768088360792,10000.01,0.00014338,2]
[401271805,1768088360815,10000.01,0.00014338,2]
[401271806,1768088360836,535.25176201,0.00014338,2]
[401271807,1768088387060,9368.8383,0.00014248,2]
[401271808,1768088393279,2500.0,0.00014248,2]
[401271809,1768088457599,-162.6145031,0.00014248,2]
[401271810,1768088457623,-162.82834639,0.00014275,2]
[401271811,1768088460205,-162.6145031,0.00014248,2]
[401271812,1768088460229,-112.99388144,0.00014275,2]
[401271814,1768088495872,1500.0,0.00013561,2]
[401271815,1768088518187,-314.11656456,0.00014262,2]
[401271816,1768088520675,-159.04489093,0.00014262,2]
[401271817,1768088521799,-299.84871669,0.00014262,2]
[401271818,1768088523472,-300.0,0.00014261,2]
[401271819,1768088523494,-2.43008474,0.00014262,2]
[401271820,1768088525703,-285.88343544,0.00014262,2]
[401271821,1768088527727,-307.47850945,0.00014262,2]
[401271822,1768088529175,-172.01289323,0.00014262,2]
[401271823,1768088529801,197.168541,0.0001419,2]
[401271824,1768088531421,-194.55919195,0.00014262,2]
[401271825,1768088535207,-166.78560955,0.00014262,2]
[401271826,1768088538140,-451.20066245,0.00014262,2]
[401271827,1768088570347,4040.71,7.244e-05,2]
[401271828,1768088570561,4040.71,7.61e-05,2]
[401271829,1768088570756,1918.59,7.976e-05,2]
[401271830,1768088570797,2122.12,7.976e-05,2]
[401271831,1768088571212,4040.71,8.343e-05,2]
[401271832,1768088571431,3837.18,8.709e-05,2]
[401271833,1768088571472,203.53,8.709e-05,2]
[401271834,1768088571653,4040.71,9.075e-05,2]
[401271835,1768088571917,4040.71,9.442e-05,2]
[401271836,1768088572188,1715.06,9.808e-05,2]
[401271837,1768088572223,2325.65,9.808e-05,2]
[401271838,1768088572405,4040.71,0.00010174,2]
[401271839,1768088572632,3633.65,0.0001054,2]
[401271840,1768088573112,407.06,0.0001054,2]
[401271841,1768088573178,4040.71,0.00010907,2]
[401271842,1768088573218,4040.71,0.00011273,2]
[401271843,1768088573277,1511.53,0.00011639,2]
[401271844,1768088573302,2529.18,0.00011639,2]
[401271845,1768088573538,4040.71,0.00012006,2]
[401271846,1768088573819,266.68806015,0.00012372,2]
[401271847,1768088573845,3430.12,0.00012372,2]
[401271848,1768088573872,343.90193985,0.00012372,2]
[401271849,1768088574672,4040.71,0.00012738,2]
[401271850,1768088574712,4040.71,0.00013105,2]
[401271851,1768088574782,1574.68806015,0.00013471,2]
[401271852,1768088574807,2466.02193985,0.00013471,2]
[401271853,1768088574853,4040.71,0.00013837,2]
[401271854,1768088576580,-156.42979489,0.00014204,2]
[401271855,1768088579364,-364.58793629,0.00014204,2]
[401271856,1768088582112,-197.89591525,0.00014204,2]
[401271857,1768088584374,-369.04126901,0.00014204,2]
[401271858,1768088586004,-252.16866732,0.00014204,2]
[401271859,1768088588681,-237.23316124,0.00014204,2]
[401271862,1768088591662,-315.00656508,0.00014204,2]
[401271866,1768088594493,-161.39838316,0.00014204,2]
[401271867,1768088596758,-275.33135499,0.00014204,2]
[401271868,1768088598369,-389.55890701,0.00014204,2]
[401271869,1768088602506,614.41,0.00013699,2]
[401271870,1768088602658,-162.93062352,0.00014204,2]
[401271871,1768088604339,-276.73699466,0.00014204,2]
[401271872,1768088607546,-188.76767996,0.00014204,2]
[401271873,1768088608480,1957.914986,0.00014132,2]
[401271874,1768088612636,-173.21574077,0.00014204,2]
[401271875,1768088614374,462.31720972,0.00012951,2]
[401271876,1768088615901,-255.04792585,0.00014204,2]
[401271877,1768088617483,-218.4146248,0.00014204,2]
[401271878,1768088648161,6254.012358,7.945e-05,2]
[401271879,1768088712681,-46.9444562,0.00014204,2]
[401271880,1768088712705,-300.0,0.00014215,2]
[401271881,1768088712730,-183.12257166,0.00014215,2]
[401271882,1768088720578,-11.87742834,0.00014215,2]
[401271883,1768088721420,-174.29552926,0.00014226,2]
[401271884,1768088773246,-75.70447074,0.00014226,2]
[401271885,1768088773272,-374.37909764,0.00014234,2]
[401271886,1768088774742,-74.9538222,0.00014234,2]
[401271887,1768088774766,-126.44683844,0.00014234,2]
[401271888,1768088785413,2073.13,0.00013994,2]
[401271889,1768088792587,1000.0,0.00013945,2]
[401271890,1768088797239,-68.55316156,0.00014234,2]
[401271891,1768088797269,-317.74732338,0.00014243,2]
[401271892,1768088797298,-195.0,0.00014243,2]
[401271893,1768088799984,-444.09469544,0.00014247,2]
[401271894,1768088801593,-207.08957226,0.00014247,2]
[401271895,1768088805876,-702.63767819,0.00014247,2]
[401271896,1768088808181,-293.00408694,0.00014247,2]
[401271897,1768088809727,-378.39288395,0.00014247,2]
[401271898,1768088811612,-165.54,0.00014247,2]
[401271899,1768088813880,-247.83133268,0.00014247,2]
[401271900,1768088816172,-167.77555432,0.00014247,2]
[401271901,1768088821089,-425.33428701,0.00014247,2]
[401271902,1768088823295,-192.31527267,0.00014247,2]
[401271903,1768088824167,4113.69828012,0.00014148,2]
[401271904,1768088825108,-420.18231643,0.00014247,2]
[401271905,1768088827996,-448.15668553,0.00014247,2]
[401271906,1768088829534,-192.68153665,0.00014247,2]
[401271907,1768088831775,-282.82985658,0.00014247,2]
[401271908,1768088836676,-232.0,0.00014247,2]
[401271909,1768088838838,-202.90743206,0.00014247,2]
[401271910,1768088840454,-187.78006525,0.00014247,2]
[401271911,1768088842165,253.65369741,0.00014148,2]
[401271912,1768088844487,-293.32002674,0.00014247,2]
[401271913,1768088845645,-337.98567243,0.00014247,2]
[401271914,1768088848813,-160.94997929,0.00014247,2]
[401271915,1768088850376,-541.1955794,0.00014247,2]
[401271916,1768088851881,-376.6731268,0.00014247,2]
[401271917,1768088853359,-189.3168,0.00014247,2]
[401271918,1768088855007,-272.13777783,0.00014247,2]
[401271919,1768088856543,-153.891643,0.00014247,2]
[401271920,1768088859153,-453.73164159,0.00014247,2]
[401271921,1768088877663,-249.60172258,0.00014247,2]
[401271922,1768088879711,-243.14365421,0.00014247,2]
[401271923,1768088882300,150.0,0.00014246,2]
[401271924,1768088882350,-307.92597978,0.00014247,2]
[401271925,1768088885447,-224.74559645,0.00014247,2]
[401271926,1768088886979,-229.16887849,0.00014247,2]
[401271927,1768088888517,-377.04637226,0.00014247,2]
[401271928,1768088890633,-296.39658514,0.00014247,2]
[401271929,1768088893858,-385.71046199,0.00014247,2]
[401271930,1768088896138,1200.0,0.00014246,2]
[401271931,1768088896617,-167.07827963,0.00014247,2]
[401271932,1768088898727,-452.0413672,0.00014247,2]
[401271933,1768088900286,-226.45407134,0.00014247,2]
[401271934,1768088923766,1084.85121755,0.00014246,5]
[401271935,1768088925853,162.6145031,0.00014147,2]
[401271936,1768088931037,162.6145031,0.00014147,2]
[401271937,1768088971271,8324.7809938,0.00014237,2]
[401271938,1768088971294,1299.16459534,0.00014237,2]
[401271939,1768088982839,169.10246494,0.00014147,2]
[401271940,1768089001216,300.0,0.00014246,2]
[401271941,1768089001257,1200.0,0.00014246,2]
[401271942,1768089004044,268.0,0.00014247,2]
[401271946,1768089031972,-879.45743612,0.00014247,2]
[401271949,1768089032093,-20081.65361683,0.00014247,2]
[401271950,1768089032106,-13757.26982019,0.00014247,2]
[401271951,1768089032117,-206124.13740586,0.00014247,2]
[401271952,1768089032130,-1254.41808677,0.00014247,2]
[401271953,1768089032142,-10957.99854066,0.00014247,2]
[401271954,1768089032154,-2286.90336051,0.00014247,2]
[401271955,1768089032170,-2127.37987507,0.00014247,2]
[401271956,1768089032181,-4057.68000001,0.00014247,2]
[401271957,1768089032201,-931.037,0.00014247,2]
[401271988,1768089038531,-6075.94110169,0.00014247,2]
[401271991,1768089038543,-140408.45886317,0.00014247,2]
[401271993,1768089038554,-3379.8,0.00014247,2]
[401272171,1768089040455,-576548.79642101,0.00014247,2]
[401272173,1768089040465,-383.58334533,0.00014247,2]
[401272174,1768089040474,-383.58334533,0.00014247,2]
[401272177,1768089040485,-383.58334533,0.00014247,2]
[401272178,1768089040495,-300.0,0.00014247,2]
[401272180,1768089040504,-250.0,0.00014247,2]
[401272182,1768089040514,-195.0,0.00014248,2]
[401272184,1768089040523,-195.0,0.00014248,2]
[401272186,1768089040533,-10493.25944101,0.00014262,2]
[401272188,1768089040542,-657.21,0.00014339,2]
[401272190,1768089040552,-200.0,0.00014339,2]
[401272192,1768089040562,-151.0,0.00014339,2]
[401272194,1768089040571,-151.0,0.00014339,2]
[401272196,1768089040583,-187.78006525,0.00014339,2]
[401272198,1768089040592,-151.0,0.00014339,2]
[401272200,1768089040601,-151.0,0.00014339,2]
[401272203,1768089040615,-151.0,0.00014339,2]
[401272205,1768089040625,-151.0,0.00014339,2]
[401272206,1768089040636,-151.0,0.00014339,2]
[401272209,1768089040645,-500.0,0.00014339,2]
[401272210,1768089040657,-151.0,0.00014339,2]
[401272213,1768089040668,-500.0,0.00014339,2]
[401272214,1768089040679,-151.0,0.00014339,2]
[401272216,1768089040691,-151.0,0.00014339,2]
[401272219,1768089040701,-500.0,0.00014339,2]
[401272221,1768089040713,-151.0,0.00014339,2]
[401272222,1768089040723,-500.0,0.00014339,2]
[401272225,1768089040732,-151.0,0.00014339,2]
[401272226,1768089040742,-151.0,0.00014339,2]
[401272228,1768089040751,-500.0,0.00014339,2]
[401272230,1768089040760,-151.0,0.00014339,2]
[401272232,1768089040769,-151.0,0.00014339,2]
[401272235,1768089040779,-500.0,0.00014339,2]
[401272237,1768089040788,-151.0,0.00014339,2]
[401272240,1768089040798,-151.0,0.00014339,2]
[401272242,1768089040808,-500.0,0.00014339,2]
[401272245,1768089040821,-151.0,0.00014339,2]
[401272247,1768089040831,-151.0,0.00014339,2]
[401272249,1768089040840,-500.0,0.00014339,2]
[401272251,1768089040850,-151.0,0.00014339,2]
[401272253,1768089040861,-151.0,0.00014339,2]
[401272255,1768089040871,-371.27993454,0.00014339,2]
[401272256,1768089040881,-151.0,0.00014339,2]
[401272258,1768089040890,-151.0,0.00014339,2]
[401272260,1768089040900,-151.0,0.00014339,2]
[401272262,1768089040910,-151.0,0.00014339,2]
[401272264,1768089040919,-151.0,0.00014339,2]
[401272266,1768089040928,-260.68472733,0.00014339,2]
[401272268,1768089040939,-200.0,0.00014339,2]
[401272270,1768089040948,-500.0,0.00014339,2]
[401272272,1768089040958,-200.0,0.00014339,2]
[401272274,1768089040967,-324.9765641,0.00014346,2]
[401272276,1768089040977,-500.0,0.00014347,2]
[401272278,1768089040987,-14141.06,0.00014348,2]
[401272280,1768089040996,-150.99,0.00014348,2]
[401272282,1768089041006,-299.99,0.00014348,2]
[401272284,1768089041016,-150.99,0.00014348,2]
[401272287,1768089041026,-462.54,0.00014348,2]
[401272288,1768089041037,-9999.99,0.00014348,2]
[401272290,1768089041048,-20121.92,0.00014348,2]
[401272292,1768089041057,-999.99,0.00014348,2]
[401272294,1768089041066,-2879.33418479,0.00014348,2]
[401272296,1768089041076,-1090.43412186,0.00014348,2]
[401272298,1768089041085,-1119.21541804,0.00014348,2]
[401272300,1768089041094,-281.83931929,0.00014348,2]
[401272302,1768089041104,-26382.1428,0.00014358,2]
[401272304,1768089041114,-1000.0,0.00014358,2]
[401272306,1768089041124,-9686.5,0.00014376,2]
[401272307,1768089041133,-166.66,0.00014474,2]
[401272309,1768089041143,-6807.16,0.00014532,2]
[401272311,1768089041152,-500.0,0.00014561,2]
[401272314,1768089041162,-500.0,0.00014561,2]
[401272316,1768089041175,-500.0,0.00014561,2]
[401272318,1768089041184,-564.92009029,0.00014561,2]
[401272320,1768089041194,-261.10675148,0.00014561,2]
[401272322,1768089041204,-657.21,0.00014613,2]
[401272324,1768089041215,-512.01590593,0.00014706,2]
[401272326,1768089041224,-498.99148565,0.00014715,2]
[401272328,1768089041233,-829.35612047,0.00014715,2]
[401272330,1768089041243,-829.35612047,0.00014715,2]
[401272332,1768089041252,-829.35612047,0.00014715,2]
[401272334,1768089041262,-829.35612047,0.00014715,2]
[401272336,1768089041273,-829.35612047,0.00014715,2]
[401272338,1768089041282,-829.35612047,0.00014715,2]
[401272340,1768089041292,-829.35612047,0.00014715,2]
[401272342,1768089041300,-829.35612047,0.00014715,2]
[401272344,1768089041310,-829.35612047,0.00014715,2]
[401272346,1768089041320,-829.35612047,0.00014715,2]
[401272348,1768089041330,-829.35612047,0.00014715,2]
[401272350,1768089041339,-829.35612047,0.00014715,2]
[401272352,1768089041349,-829.35612047,0.00014715,2]
[401272354,1768089041358,-829.35612047,0.00014715,2]
[401272356,1768089041368,-829.35612047,0.00014715,2]
[401272358,1768089041378,-829.35612047,0.00014715,2]
[401272359,1768089041388,-829.35612047,0.00014715,2]
[401272362,1768089041399,-829.35612047,0.00014715,2]
[401272364,1768089041408,-829.35612047,0.00014715,2]
[401272366,1768089041418,-829.35612047,0.00014715,2]
[401272367,1768089041428,-829.35612047,0.00014715,2]
[401272370,1768089041438,-829.35612047,0.00014715,2]
[401272372,1768089041447,-829.35612047,0.00014715,2]
[401272373,1768089041457,-829.35612047,0.00014715,2]
[401272376,1768089041466,-829.35612047,0.00014715,2]
[401272378,1768089041481,-829.35612047,0.00014715,2]
[401272379,1768089041491,-829.35612047,0.00014715,2]
[401272381,1768089041501,-829.35612047,0.00014715,2]
[401272384,1768089041511,-829.35612047,0.00014715,2]
[401272385,1768089041520,-829.35612047,0.00014715,2]
[401272387,1768089041530,-829.35612047,0.00014715,2]
[401272389,1768089041540,-829.35612047,0.00014715,2]
[401272392,1768089041553,-829.35612047,0.00014715,2]
[401272394,1768089041563,-829.35612047,0.00014715,2]
[401272396,1768089041572,-829.35612047,0.00014715,2]
[401272398,1768089041586,-829.35612047,0.00014715,2]
[401272400,1768089041596,-829.35612047,0.00014715,2]
[401272402,1768089041606,-829.35612047,0.00014715,2]
[401272404,1768089041616,-829.35612047,0.00014715,2]
[401272406,1768089041627,-829.35612047,0.00014715,2]
[401272408,1768089041636,-829.35612047,0.00014715,2]
[401272410,1768089041646,-825.82694548,0.00014715,2]
[401272412,1768089041656,-825.82694548,0.00014715,2]
[401272413,1768089041666,-825.82694548,0.00014715,2]
[401272414,1768089041675,-825.82694548,0.00014715,2]
[401272415,1768089041684,-825.82694548,0.00014715,2]
[401272416,1768089041694,-825.82694548,0.00014715,2]
[401272417,1768089041704,-825.82694548,0.00014715,2]
[401272418,1768089041714,-825.82694548,0.00014715,2]
[401272419,1768089041723,-825.82694548,0.00014715,2]
[401272420,1768089041733,-825.82694548,0.00014715,2]
[401272421,1768089041743,-825.82694548,0.00014715,2]
[401272422,1768089041752,-825.82694548,0.00014715,2]
[401272423,1768089041762,-825.82694548,0.00014715,2]
[401272424,1768089041771,-825.82694548,0.00014715,2]
[401272425,1768089041780,-825.82694548,0.00014715,2]
[401272426,1768089041790,-825.82694548,0.00014715,2]
[401272428,1768089041799,-825.82694548,0.00014715,2]
[401272430,1768089041812,-825.82694548,0.00014715,2]
[401272432,1768089041823,-825.82694548,0.00014715,2]
[401272434,1768089041833,-825.82694548,0.00014715,2]
[401272436,1768089041843,-825.82694548,0.00014715,2]
[401272439,1768089041852,-825.82694548,0.00014715,2]
[401272441,1768089041862,-825.82694548,0.00014715,2]
[401272443,1768089041872,-825.82694548,0.00014715,2]
[401272445,1768089041881,-825.82694548,0.00014715,2]
[401272447,1768089041891,-825.82694548,0.00014715,2]
[401272449,1768089041900,-825.82694548,0.00014715,2]
[401272451,1768089041910,-823.21907093,0.00014715,2]
[401272453,1768089041919,-823.21907093,0.00014715,2]
[401272455,1768089041929,-823.21907093,0.00014715,2]
[401272457,1768089041942,-823.21907093,0.00014715,2]
[401272459,1768089041952,-823.21907093,0.00014715,2]
[401272461,1768089041961,-823.21907093,0.00014715,2]
[401272463,1768089041971,-823.21907093,0.00014715,2]
[401272465,1768089041980,-823.21907093,0.00014715,2]
[401272467,1768089041989,-823.21907093,0.00014715,2]
[401272470,1768089041999,-823.21907093,0.00014715,2]
[401272472,1768089042008,-823.21907093,0.00014715,2]
[401272474,1768089042018,-823.21907093,0.00014715,2]
[401272476,1768089042027,-823.21907093,0.00014715,2]
[401272478,1768089042036,-823.21907093,0.00014715,2]
[401272480,1768089042045,-823.21907093,0.00014715,2]
[401272482,1768089042056,-823.21907093,0.00014715,2]
[401272484,1768089042066,-823.21907093,0.00014715,2]
[401272486,1768089042075,-1073.21907089,0.00014715,2]
[401272488,1768089042085,-1073.21907089,0.00014715,2]
[401272490,1768089042094,-500.0,0.00014715,2]
[401272492,1768089042104,-500.0,0.00014715,2]
[401272494,1768089042113,-500.0,0.00014715,2]
[401272496,1768089042123,-500.0,0.00014715,2]
[401272499,1768089042137,-500.0,0.00014715,2]
[401272501,1768089042146,-154.84565265,0.00014715,2]
[401272503,1768089042156,-157925.8614993,0.00014716,2]
[401272505,1768089042166,-2788.62,0.00014739,2]
[401272507,1768089042176,-657.21,0.00014887,2]
[401272509,1768089042185,-500.0,0.00014887,2]
[401272511,1768089042195,-200.0,0.00014887,2]
[401272513,1768089042204,-169.10246494,0.00014927,2]
[401272515,1768089042214,-166.66,0.00014951,2]
[401272517,1768089042223,-657.21,0.00015161,2]
[401272519,1768089042232,-151.0,0.00015228,2]
[401272521,1768089042242,-151.0,0.00015228,2]
[401272524,1768089042252,-166.66,0.00015429,2]
[401272526,1768089042261,-657.21,0.00015435,2]
[401272528,1768089042271,-500.0,0.00015435,2]
[401272530,1768089042281,-662.64,0.00015447,2]
[401272532,1768089042290,-1680.0,0.00015604,2]
[401272534,1768089042300,-300.0,0.00015604,2]
[401272536,1768089042309,-300.0,0.00015648,2]
[401272538,1768089042321,-300.0,0.00015648,2]
[401272540,1768089042330,-195.0,0.00015648,2]
[401272542,1768089042340,-1680.0,0.00015671,2]
[401272544,1768089042350,-195.0,0.00015672,2]
[401272546,1768089042359,-250.0,0.00015672,2]
[401272548,1768089042369,-250.0,0.00015672,2]
[401272550,1768089042378,-300.0,0.00015672,2]
[401272552,1768089042388,-1000.0,0.00015688,2]
[401272554,1768089042397,-169.10246494,0.00015707,2]
[401272556,1768089042407,-657.21,0.00015709,2]
[401272558,1768089042417,-1897.91,0.00015794,2]
[401272560,1768089042426,-2234.82899172,0.00015807,2]
[401272562,1768089042435,-500.0,0.00015836,2]
[401272564,1768089042446,-4113.69828004,0.00015898,2]
[401272567,1768089042455,-166.66,0.00015907,2]
[401272568,1768089042465,-657.21,0.00015983,2]
[401272571,1768089042475,-365.26,0.00016075,2]
[401272572,1768089042484,-5000.00582791,0.000162,5]
[401272575,1768089042494,-657.28009015,0.00016257,2]
[401272577,1768089042504,-166.66,0.00016385,2]
[401272579,1768089042513,-500.0,0.00016438,2]
[401272581,1768089042523,-500.0,0.00016438,2]
[401272583,1768089042533,-500.0,0.00016438,2]
[401272585,1768089042542,-500.0,0.00016438,2]
[401272587,1768089042551,-500.0,0.00016438,2]
[401272589,1768089042561,-500.0,0.00016438,2]
[401272591,1768089042570,-500.0,0.00016438,2]
[401272593,1768089042581,-500.0,0.00016438,2]
[401272595,1768089042592,-500.0,0.00016438,2]
[401272597,1768089042602,-500.0,0.00016438,2]
[401272599,1768089042611,-500.0,0.00016438,2]
[401272601,1768089042621,-500.0,0.00016438,2]
[401272603,1768089042630,-500.0,0.00016438,2]
[401272605,1768089042641,-500.0,0.00016438,2]
[401272607,1768089042651,-500.0,0.00016438,2]
[401272609,1768089042662,-500.0,0.00016438,2]
[401272611,1768089042671,-225.3021735,0.00016438,2]
[401272613,1768089042681,-500.0,0.00016438,2]
[401272615,1768089042690,-500.0,0.00016438,2]
[401272617,1768089042700,-500.0,0.00016438,2]
[401272619,1768089042709,-500.0,0.00016438,2]
[401272621,1768089042721,-500.0,0.00016438,2]
[401272623,1768089042730,-500.0,0.00016438,2]
[401272625,1768089042740,-500.0,0.00016438,2]
[401272627,1768089042750,-500.0,0.00016438,2]
[401272629,1768089042760,-500.0,0.00016438,2]
[401272631,1768089042769,-500.0,0.00016438,2]
[401272633,1768089042779,-500.0,0.00016438,2]
[401272635,1768089042789,-500.0,0.00016438,2]
[401272637,1768089042798,-400.0,0.00016438,2]
[401272640,1768089042809,-500.0,0.00016438,2]
[401272642,1768089042819,-500.0,0.00016438,2]
[401272644,1768089042828,-500.0,0.00016438,2]
[401272646,1768089042838,-500.0,0.00016438,2]
[401272648,1768089042849,-800.0,0.00016438,2]
[401272650,1768089042860,-519.0,0.00016438,2]
[401272652,1768089042869,-35238.0227679,0.00016623,2]
[401272654,1768089042878,-166.66,0.00016862,2]
[401272656,1768089042888,-250.0,0.00017,2]
[401272658,1768089042897,-252.39197667,0.00017044,2]
[401272660,1768089042907,-7862.6656635,0.00017049,2]
[401272662,1768089042916,-720.0,0.0001709,2]
[401272664,1768089042926,-2351.0,0.00017238,2]
[401272666,1768089042936,-1000.0,0.00017431,2]
[401272668,1768089042946,-4113.69828004,0.00017648,2]
[401272670,1768089042957,-440.56991089,0.000179,2]
[401272672,1768089042966,-500.0,0.00017945,2]
[401272674,1768089042976,-513.02244381,0.00017973,2]
[401272676,1768089042986,-225.65669469,0.00017973,2]
[401272678,1768089042996,-1508.01,0.00018,7]
[401272680,1768089043005,-49512.24445321,0.00018,2]
[401272753,1768089043698,-1.7e-07,0.00018,2]
[401272809,1768089044246,-773.94635485,0.00018,2]
[401272814,1768089044284,-1001.9863755,0.00018,2]
[401272938,1768089045631,-364.47543328,0.00018,2]
[401272979,1768089046042,-2608.63388952,0.00018,2]
[401272999,1768089046245,-87334.54598278,0.00018,2]
[401273207,1768089048371,162.6145031,0.00014147,2]
[401273510,1768089064257,500.0,0.00014147,2]
[401273511,1768089070546,6101.12843662,0.00014147,2]
[401273512,1768089070568,3454.94986338,0.00014147,2]
[401273513,1768089086692,6545.06013662,0.00014147,2]
[401273514,1768089086722,10000.01,0.00014147,2]
[401273515,1768089086750,10000.01,0.00014147,2]
[401273516,1768089086776,10000.01,0.00014147,2]
[401273517,1768089086802,10000.01,0.00014147,2]
[401273518,1768089086829,10000.01,0.00014147,2]
[401273519,1768089086855,10000.01,0.00014147,2]
[401273520,1768089088275,-677.55995781,0.00014147,2]